fUSD/lending_fUSD_20240726
["ID","MTS","AMOUNT","RATE_DAILY","PERIOD"]
[333280087,1722017440495,-445.12723154,0.00010958,2]
[333280089,1722017440504,-500.0,0.00010958,2]
[333280091,1722017440513,-500.0,0.00010958,2]
[333280093,1722017440523,-500.0,0.00010958,2]
[333280095,1722017440532,-500.0,0.00010958,2]
[333280097,1722017440542,-500.0,0.00010958,2]
[333280099,1722017440552,-500.0,0.00010958,2]
[333280100,1722017440561,-500.0,0.00010958,2]
[333280102,1722017440570,-343.76,0.00010958,2]
[333280104,1722017440580,-500.0,0.00010958,2]
[333280106,1722017440590,-500.0,0.00010958,2]
[333280108,1722017440600,-500.0,0.00010958,2]
[333280110,1722017440610,-500.0,0.00010958,2]
[333280112,1722017440619,-500.0,0.00010958,2]
[333280114,1722017440629,-500.0,0.00010958,2]
[333280116,1722017440639,-500.0,0.00010958,2]
[333280118,1722017440649,-500.0,0.00010958,2]
[333280119,1722017440659,-209.64,0.00010958,2]
[333280121,1722017440668,-500.0,0.00010958,2]
[333280123,1722017440678,-500.0,0.00010958,2]
[333280125,1722017440688,-500.66473795,0.00010958,2]
[333280127,1722017440699,-500.0,0.00010958,2]
[333280129,1722017440709,-500.0,0.00010958,2]
[333280130,1722017440719,-500.0,0.00010958,2]
[333280132,1722017440729,-500.0,0.00010958,2]
[333280134,1722017440739,-500.0,0.00010958,2]
[333280136,1722017440749,-500.0,0.00010958,2]
[333280138,1722017440763,-535.63,0.00010958,2]
[333280140,1722017440772,-500.0,0.00010958,2]
[333280142,1722017440782,-500.0,0.00010958,2]
[333280144,1722017440792,-500.0,0.00010958,2]
[333280146,1722017440802,-455.66,0.00010958,2]
[333280148,1722017440811,-500.0,0.00010958,2]
[333280150,1722017440820,-500.0,0.00010958,2]
[333280152,1722017440830,-500.0,0.00010958,2]
[333280154,1722017440840,-282.5,0.00010958,2]
[333280156,1722017440850,-500.0,0.00010958,2]
[333280157,1722017440858,-500.0,0.00010958,2]
[333280159,1722017440868,-237.64301333,0.00010958,2]
[333280161,1722017440877,-639.71,0.00010958,2]
[333280163,1722017440887,-500.0,0.00010958,2]
[333280165,1722017440896,-500.0,0.00010958,2]
[333280167,1722017440906,-500.0,0.00010958,2]
[333280169,1722017440915,-500.0,0.00010958,2]
[333280171,1722017440925,-500.0,0.00010958,2]
[333280173,1722017440934,-500.0,0.00010958,2]
[333280174,1722017440943,-545.17,0.00010958,2]
[333280176,1722017440953,-500.0,0.00010958,2]
[333280178,1722017440963,-500.0,0.00010958,2]
[333280180,1722017440973,-500.0,0.00010958,2]
[333280182,1722017440982,-500.0,0.00010958,2]
[333280184,1722017440991,-237.62,0.00010958,2]
[333280186,1722017441001,-500.0,0.00010958,2]
[333280187,1722017441010,-170.05,0.00010958,2]
[333280189,1722017441020,-500.0,0.00010958,2]
[333280191,1722017441030,-500.0,0.00010958,2]
[333280193,1722017441039,-500.0,0.00010958,2]
[333280195,1722017441049,-432.54,0.00010958,2]
[333280197,1722017441059,-552.08,0.00010958,2]
[333280199,1722017441068,-500.0,0.00010958,2]
[333280201,1722017441078,-500.0,0.00010958,2]
[333280202,1722017441088,-500.0,0.00010958,2]
[333280204,1722017441098,-500.0,0.00010958,2]
[333280206,1722017441108,-500.0,0.00010958,2]
[333280208,1722017441118,-500.0,0.00010958,2]
[333280210,1722017441128,-500.0,0.00010958,2]
[333280212,1722017441137,-500.0,0.00010958,2]
[333280214,1722017441146,-500.0,0.00010958,2]
[333280216,1722017441156,-500.0,0.00010958,2]
[333280218,1722017441165,-500.0,0.00010958,2]
[333280220,1722017441174,-500.0,0.00010958,2]
[333280222,1722017441183,-500.0,0.00010958,2]
[333280224,1722017441192,-500.0,0.00010958,2]
[333280226,1722017441203,-228.04,0.00010958,2]
[333280228,1722017441213,-354.34126331,0.00010958,2]
[333280229,1722017441222,-500.0,0.00010958,2]
[333280231,1722017441231,-500.0,0.00010958,2]
[333280233,1722017441240,-500.0,0.00010958,2]
[333280235,1722017441249,-500.0,0.00010958,2]
[333280237,1722017441258,-500.0,0.00010958,2]
[333280239,1722017441268,-500.0,0.00010958,2]
[333280241,1722017441277,-500.0,0.00010958,2]
[333280242,1722017441286,-500.0,0.00010958,2]
[333280244,1722017441296,-500.0,0.00010958,2]
[333280246,1722017441305,-500.0,0.00010958,2]
[333280248,1722017441314,-500.0,0.00010958,2]
[333280249,1722017441323,-500.0,0.00010958,2]
[333280250,1722017441333,-500.0,0.00010958,2]
[333280251,1722017441342,-500.0,0.00010958,2]
[333280252,1722017441352,-462.04523981,0.00010958,2]
[333280253,1722017441361,-500.0,0.00010958,2]
[333280254,1722017441370,-500.0,0.00010958,2]
[333280255,1722017441379,-500.0,0.00010958,2]
[333280256,1722017441388,-549.75,0.00010958,2]
[333280257,1722017441397,-500.0,0.00010958,2]
[333280258,1722017441407,-293.75433028,0.00010958,2]
[333280259,1722017441416,-253.52,0.00010958,2]
[333280260,1722017441426,-500.0,0.00010958,2]
[333280261,1722017441435,-500.0,0.00010958,2]
[333280262,1722017441444,-500.0,0.00010958,2]
[333280263,1722017441454,-500.0,0.00010958,2]
[333280264,1722017441463,-124.35157891,0.00010958,2]
[333280265,1722017441477,-117.79842109,0.00010958,2]
[333280266,1722017441486,-500.0,0.00010958,2]
[333280267,1722017441495,-354.32,0.00010958,2]
[333280268,1722017441505,-500.0,0.00010958,2]
[333280269,1722017441514,-272.04,0.00010958,2]
[333280270,1722017441524,-389.48739809,0.00010958,2]
[333280272,1722017441534,-500.0,0.00010958,2]
[333280274,1722017441543,-500.0,0.00010958,2]
[333280276,1722017441553,-500.0,0.00010958,2]
[333280278,1722017441563,-500.0,0.00010958,2]
[333280280,1722017441573,-500.0,0.00010958,2]
[333280282,1722017441583,-500.0,0.00010958,2]
[333280284,1722017441593,-294.25,0.00010958,2]
[333280286,1722017441602,-533.34,0.00010958,2]
[333280288,1722017441612,-500.0,0.00010958,2]
[333280290,1722017441621,-485.29241821,0.00010958,2]
[333280295,1722017441659,-14.70758179,0.00010958,2]
[333280297,1722017441668,-500.0,0.00010958,2]
[333280299,1722017441677,-500.0,0.00010958,2]
[333280301,1722017441687,-500.0,0.00010958,2]
[333280303,1722017441696,-622.05835617,0.00010958,2]
[333280305,1722017441705,-461.82,0.00010958,2]
[333280307,1722017441714,-500.0,0.00010958,2]
[333280309,1722017441724,-500.0,0.00010958,2]
[333280311,1722017441733,-501.27107766,0.00010958,2]
[333280312,1722017441742,-500.0,0.00010958,2]
[333280314,1722017441752,-512.76,0.00010958,2]
[333280316,1722017441766,-500.0,0.00010958,2]
[333280318,1722017441776,-359.54202017,0.00010958,2]
[333280320,1722017441785,-500.0,0.00010958,2]
[333280322,1722017441795,-500.0,0.00010958,2]
[333280324,1722017441806,-500.0,0.00010958,2]
[333280326,1722017441816,-500.0,0.00010958,2]
[333280329,1722017441826,-500.0,0.00010958,2]
[333280331,1722017441841,-500.0,0.00010958,2]
[333280332,1722017441850,-500.0,0.00010958,2]
[333280334,1722017441860,-502.85501699,0.00010958,2]
[333280336,1722017441873,-381.53,0.00010958,2]
[333280339,1722017441882,-223.49,0.00010958,2]
[333280341,1722017441893,-500.0,0.00010958,2]
[333280343,1722017441903,-502.41389775,0.00010958,2]
[333280344,1722017441913,-500.0,0.00010958,2]
[333280346,1722017441922,-500.0,0.00010958,2]
[333280348,1722017441931,-210.98935891,0.00010958,2]
[333280350,1722017441940,-501.66782399,0.00010958,2]
[333280352,1722017441950,-503.72768652,0.00010958,2]
[333280354,1722017441959,-500.0,0.00010958,2]
[333280356,1722017441968,-503.93229879,0.00010958,2]
[333280357,1722017441978,-527.54943543,0.00010958,2]
[333280359,1722017441987,-504.25212969,0.00010958,2]
[333280361,1722017441996,-323.72826052,0.00010958,2]
[333280363,1722017442006,-500.0,0.00010958,2]
[333280365,1722017442015,-503.98629727,0.00010958,2]
[333280367,1722017442024,-503.0019581,0.00010958,2]
[333280369,1722017442034,-500.0,0.00010958,2]
[333280371,1722017442043,-501.3609277,0.00010958,2]
[333280373,1722017442053,-1179.34,0.00010958,2]
[333280375,1722017442062,-500.0,0.00010989,2]
[333280377,1722017442072,-500.0,0.00010989,2]
[333280379,1722017442081,-500.0,0.00010989,2]
[333280381,1722017442093,-500.0,0.00010989,2]
[333280383,1722017442102,-500.0,0.00010989,2]
[333280385,1722017442111,-500.0,0.00010989,2]
[333280387,1722017442120,-500.0,0.00010991,2]
[333280389,1722017442130,-500.0,0.00010991,2]
[333280391,1722017442139,-500.0,0.00010998,2]
[333280393,1722017442148,-133.95759215,0.00010998,2]
[333280395,1722017442160,-366.04240785,0.00010998,2]
[333280397,1722017442169,-478.224,0.00010998,2]
[333280398,1722017442179,-248.01222024,0.00010998,2]
[333280401,1722017442190,-561.98777976,0.00010998,2]
[333280403,1722017442200,-113.57711024,0.00010998,2]
[333280405,1722017442211,-331.42288976,0.00010998,2]
[333280407,1722017442220,-550.0,0.00010998,2]
[333280409,1722017442229,-150.0,0.00010998,2]
[333280410,1722017442238,-598.55805222,0.00010998,2]
[333280413,1722017442251,-1783.44194778,0.00010998,2]
[333280415,1722017442260,-625.90958323,0.00010998,2]
[333280418,1722017442279,-2657.09041677,0.00010998,2]
[333280421,1722017442301,-150.0,0.00010998,2]
[333280423,1722017442311,-1139.00958323,0.00010998,2]
[333280425,1722017442330,-855.99041677,0.00010998,2]
[333280427,1722017442343,-12837.15110323,0.00010998,2]
[333280430,1722017442356,-1411.2,0.00010998,2]
[333280546,1722017443350,-1328.64859932,0.00010998,2]
[333280548,1722017443361,-997.650002,0.00010998,2]
[333280550,1722017443373,-230.22929545,0.00010998,2]
[333280552,1722017443382,-98.09812052,0.00010998,2]
[333280555,1722017443394,-2536.07287948,0.00010998,2]
[333280558,1722017443404,-1073.0,0.00010998,2]
[333280560,1722017443414,-150.01,0.00010999,2]
[333280562,1722017443424,-5212.91563301,0.00010999,2]
[333280565,1722017443440,-732.79216812,0.00010999,2]
[333280566,1722017443449,-500.0,0.00010999,2]
[333280568,1722017443459,-500.0,0.00010999,2]
[333280570,1722017443469,-500.0,0.00010999,2]
[333280572,1722017443479,-164.75,0.00010999,2]
[333280574,1722017443489,-500.0,0.00010999,2]
[333280576,1722017443498,-507.08,0.00010999,2]
[333280578,1722017443507,-500.0,0.00010999,2]
[333280580,1722017443517,-500.0,0.00010999,2]
[333280582,1722017443526,-500.0,0.00010999,2]
[333280584,1722017443535,-624.34,0.00010999,2]
[333280586,1722017443545,-500.0,0.00010999,2]
[333280588,1722017443554,-500.0,0.00010999,2]
[333280590,1722017443564,-500.0,0.00010999,2]
[333280592,1722017443573,-590.9,0.00010999,2]
[333280594,1722017443582,-500.0,0.00010999,2]
[333280596,1722017443593,-184.23453003,0.00010999,2]
[333280598,1722017443602,-500.0,0.00010999,2]
[333280599,1722017443611,-500.0,0.00010999,2]
[333280601,1722017443621,-467.79,0.00010999,2]
[333280603,1722017443631,-500.0,0.00010999,2]
[333280605,1722017443640,-500.0,0.00010999,2]
[333280607,1722017443650,-500.0,0.00010999,2]
[333280609,1722017443660,-638.16,0.00010999,2]
[333280611,1722017443670,-500.0,0.00010999,2]
[333280613,1722017443680,-500.0,0.00010999,2]
[333280615,1722017443689,-500.0,0.00010999,2]
[333280617,1722017443699,-373.82,0.00010999,2]
[333280619,1722017443708,-505.28110541,0.00010999,2]
[333280621,1722017443718,-500.0,0.00010999,2]
[333280623,1722017443727,-500.0,0.00010999,2]
[333280625,1722017443737,-156.02,0.00010999,2]
[333280627,1722017443747,-500.0,0.00010999,2]
[333280629,1722017443759,-500.0,0.00010999,2]
[333280631,1722017443769,-500.0,0.00010999,2]
[333280633,1722017443778,-168.07,0.00010999,2]
[333280635,1722017443787,-500.0,0.00010999,2]
[333280637,1722017443797,-500.0,0.00010999,2]
[333280639,1722017443807,-228.83159855,0.00010999,2]
[333280641,1722017443816,-500.0,0.00010999,2]
[333280643,1722017443826,-445.85574832,0.00010999,2]
[333280645,1722017443838,-1000.0,0.00010999,2]
[333280647,1722017443848,-500.0,0.00010999,2]
[333280649,1722017443858,-610.41,0.00010999,2]
[333280651,1722017443868,-40979.83106841,0.00011,2]
[333280653,1722017443880,-293.75433028,0.00011,2]
[333280655,1722017443891,-20492.59590905,0.00011,2]
[333280657,1722017443903,-823.08195931,0.00011,2]
[333280660,1722017443915,-1012.97035628,0.00011,2]
[333280662,1722017443926,-530.36582243,0.00011,2]
[333280821,1722017445969,-253.52,0.00011,2]
[333280881,1722017446617,-11160.0,0.00011,2]
[333280883,1722017446629,-3350.64162744,0.00011,2]
[333280993,1722017497273,151.0,0.00020469,120]
[333280994,1722017786711,151.0,0.00020469,120]
[333280995,1722018229501,151.0,0.00020469,120]
[333281022,1722018632267,-261.57088958,8.325e-05,2]
[333281023,1722018632279,-386.38911042,8.325e-05,2]
[333281024,1722018632289,-113.61088958,0.0001,2]
[333281025,1722018632400,-1136.38911042,0.0001,2]
[333281026,1722018632410,-7376.05061384,0.0001,2]
[333281027,1722018632419,-250.0,0.00010163,2]
[333281028,1722018632429,-1000.0,0.00010243,2]
[333281029,1722018632438,-647.96,0.00010589,2]
[333281030,1722018632448,-177.52,0.00010739,2]
[333281031,1722018632457,-150.0,0.00010879,2]
[333281032,1722018632467,-14129.6547356,0.0001088,2]
[333281033,1722018632478,-975.65228893,0.0001088,2]
[333281034,1722018632490,-6092.12064504,0.0001088,2]
[333281035,1722018632501,-725.44019041,0.0001088,2]
[333281036,1722018632522,-3530.84168186,0.0001088,2]
[333281037,1722018632534,-2200.0,0.0001088,2]
[333281056,1722018638270,-83172.70964387,0.0001088,2]
[333281057,1722018638282,-498.35828287,0.0001088,2]
[333281058,1722018638293,-552.62070963,0.0001088,2]
[333281059,1722018638400,-2033.01980657,0.0001088,2]
[333281060,1722018638412,-4600.39816,0.0001088,2]
[333281061,1722018638423,-33827.49999997,0.0001088,2]
[333281062,1722018638437,-582.4630849,0.0001088,2]
[333281063,1722018638449,-535.43603324,0.0001088,2]
[333281064,1722018638569,-13211.39102674,0.0001088,2]
[333281065,1722018638581,-1283.15632742,0.0001088,2]
[333281066,1722018638610,-256.02265198,0.0001088,2]
[333281214,1722018640287,-456.67499957,0.0001088,2]
[333281216,1722018640299,-1730.84596,0.0001088,2]
[333281218,1722018640315,-9210.76,0.0001088,2]
[333281221,1722018640327,-198188.052927,0.0001088,2]
[333281224,1722018640336,-518.0,0.0001089,2]
[333281226,1722018640345,-1000.0,0.000109,2]
[333281228,1722018640354,-1497.4301,0.000109,2]
[333281229,1722018640363,-951.082554,0.000109,2]
[333281231,1722018640372,-1000.0,0.000109,2]
[333281233,1722018640381,-822.27768241,0.000109,2]
[333281235,1722018640391,-500.0,0.00010958,2]
[333281237,1722018640400,-500.0,0.00010958,2]
[333281239,1722018640408,-500.0,0.00010958,2]
[333281241,1722018640418,-500.0,0.00010958,2]
[333281243,1722018640427,-500.0,0.00010958,2]
[333281245,1722018640436,-614.84547932,0.00010958,2]
[333281247,1722018640445,-499.37441193,0.00010958,2]
[333281249,1722018640454,-500.0,0.00010958,2]
[333281251,1722018640464,-500.0,0.00010958,2]
[333281253,1722018640473,-500.0,0.00010958,2]
[333281255,1722018640482,-505.28110541,0.00010958,2]
[333281257,1722018640491,-500.0,0.00010958,2]
[333281259,1722018640502,-500.0,0.00010958,2]
[333281261,1722018640511,-500.0,0.00010958,2]
[333281263,1722018640520,-500.0,0.00010958,2]
[333281265,1722018640529,-500.0,0.00010958,2]
[333281266,1722018640538,-500.0,0.00010958,2]
[333281268,1722018640547,-500.0,0.00010958,2]
[333281270,1722018640560,-499.99,0.00010997,2]
[333281272,1722018640569,-1467.93233637,0.00010997,2]
[333281274,1722018640578,-1864.762,0.00010998,2]
[333281276,1722018640587,-453.068,0.00010998,2]
[333281278,1722018640597,-1254.0,0.00010998,2]
[333281280,1722018640607,-5122.0,0.00010998,2]
[333281281,1722018640616,-362.0,0.00010998,2]
[333281283,1722018640626,-5135.406,0.00010998,2]
[333281285,1722018640635,-1829.0,0.00010998,2]
[333281287,1722018640644,-4696.313,0.00010998,2]
[333281289,1722018640653,-450.0,0.00010998,2]
[333281291,1722018640662,-150.01,0.00010999,2]
[333281293,1722018640671,-5521.42600838,0.00010999,2]
[333281294,1722018640680,-2118.36543561,0.00010999,2]
[333281296,1722018640689,-500.0,0.00010999,2]
[333281298,1722018640699,-500.0,0.00010999,2]
[333281300,1722018640708,-164.75,0.00010999,2]
[333281302,1722018640718,-507.08,0.00010999,2]
[333281303,1722018640727,-500.0,0.00010999,2]
[333281306,1722018640736,-500.0,0.00010999,2]
[333281307,1722018640745,-624.34,0.00010999,2]
[333281309,1722018640755,-500.0,0.00010999,2]
[333281311,1722018640764,-500.0,0.00010999,2]
[333281313,1722018640774,-590.9,0.00010999,2]
[333281315,1722018640783,-184.23453003,0.00010999,2]
[333281317,1722018640792,-500.0,0.00010999,2]
[333281319,1722018640802,-467.79,0.00010999,2]
[333281321,1722018640813,-500.0,0.00010999,2]
[333281323,1722018640822,-500.0,0.00010999,2]
[333281325,1722018640832,-638.16,0.00010999,2]
[333281327,1722018640841,-500.0,0.00010999,2]
[333281329,1722018640850,-500.0,0.00010999,2]
[333281331,1722018640860,-373.82,0.00010999,2]
[333281333,1722018640869,-500.0,0.00010999,2]
[333281335,1722018640879,-228.83159855,0.00010999,2]
[333281337,1722018640888,-500.0,0.00010999,2]
[333281339,1722018640898,-500.0,0.00010999,2]
[333281341,1722018640909,-156.02,0.00010999,2]
[333281343,1722018640918,-500.0,0.00010999,2]
[333281345,1722018640928,-168.07,0.00010999,2]
[333281346,1722018640937,-500.0,0.00010999,2]
[333281348,1722018640946,-445.85574832,0.00010999,2]
[333281350,1722018640956,-500.0,0.00010999,2]
[333281352,1722018640965,-500.0,0.00010999,2]
[333281354,1722018640974,-549.75,0.00010999,2]
[333281356,1722018640984,-1005.59,0.00010999,2]
[333281359,1722018640994,-1005.59,0.00010999,2]
[333281361,1722018641004,-1005.59,0.00010999,2]
[333281362,1722018641014,-1005.59,0.00010999,2]
[333281364,1722018641023,-1005.59,0.00010999,2]
[333281366,1722018641032,-1005.59,0.00010999,2]
[333281368,1722018641043,-1005.59,0.00010999,2]
[333281370,1722018641052,-1005.59,0.00010999,2]
[333281371,1722018641062,-1005.59,0.00010999,2]
[333281373,1722018641071,-1005.59,0.00010999,2]
[333281375,1722018641080,-1005.59,0.00010999,2]
[333281376,1722018641089,-1005.59,0.00010999,2]
[333281378,1722018641098,-1005.59,0.00010999,2]
[333281380,1722018641107,-1005.59,0.00010999,2]
[333281381,1722018641116,-1005.59,0.00010999,2]
[333281383,1722018641125,-1005.59,0.00010999,2]
[333281385,1722018641134,-1005.59,0.00010999,2]
[333281387,1722018641143,-1005.59,0.00010999,2]
[333281388,1722018641152,-1005.59,0.00010999,2]
[333281390,1722018641163,-1005.59,0.00010999,2]
[333281392,1722018641174,-1005.59,0.00010999,2]
[333281394,1722018641184,-1005.59,0.00010999,2]
[333281396,1722018641193,-1005.59,0.00010999,2]
[333281397,1722018641203,-1005.59167286,0.00010999,2]
[333281399,1722018641214,-459.37588884,0.00010999,2]
[333281401,1722018641223,-500.0,0.00010999,2]
[333281403,1722018641233,-610.41,0.00010999,2]
[333281404,1722018641242,-522.0332071,0.00010999,2]
[333281406,1722018641252,-281.48062565,0.00010999,2]
[333281408,1722018641262,-1000.0,0.00011,2]
[333281409,1722018641271,-60207.44774882,0.00011,2]
[333281411,1722018641284,-2013.124334,0.00011,2]
[333281414,1722018641306,-21256.29782865,0.00011,2]
[333281416,1722018641317,-698.50638546,0.00011,2]
[333281418,1722018641328,-41374.91738175,0.00011,2]
[333281420,1722018641339,-25777.76679257,0.00011,2]
[333281422,1722018641349,-102434.46973523,0.00011,2]
[333281424,1722018641360,-10443.30527261,0.00011,2]
[333281426,1722018641375,-8949.524,0.00011,2]
[333281578,1722018643262,-621.0,0.00010998,2]
[333281580,1722018643271,-61757.16621884,0.00011,2]
[333281582,1722018643283,-327.12129972,0.00011,2]
[333281598,1722018643778,-530.71038204,0.00011,2]
[333281600,1722018643790,-687.85090234,0.00011,2]
[333281602,1722018643801,-2984.75,0.00011,2]
[333281605,1722018643816,-500.32600203,0.00011,2]
[333281607,1722018643832,-3746.70924591,0.00011,2]
[333281610,1722018643851,-1596.30903577,0.00011,2]
[333281613,1722018643878,-43658.60965253,0.00011,2]
[333281615,1722018643887,-14034.60852158,0.00011,2]
[333281876,1722018646367,-2929.48393449,0.00011,2]
[333281916,1722018646710,-9049.34034,0.00011,2]
[333281920,1722018646724,-7297.01446395,0.00011,2]
[333281923,1722018646736,-3337.46412,0.00011,2]
[333281925,1722018646747,-341653.50498862,0.00011,2]
[333281933,1722018646820,-3750.898,0.00011,2]
[333283398,1722019832433,-599.0,8.219e-05,2]
[333283399,1722019832443,-1250.0,0.0001,2]
[333283401,1722019832452,-150.0,0.0001011,2]
[333283403,1722019832461,-195.82,0.00010121,2]
[333283405,1722019832470,-195.82,0.00010124,2]
[333283407,1722019832479,-195.82,0.00010126,2]
[333283409,1722019832488,-195.82,0.00010129,2]
[333283411,1722019832497,-195.82,0.00010132,2]
[333283413,1722019832506,-195.82,0.00010134,2]
[333283415,1722019832515,-195.82,0.00010137,2]
[333283416,1722019832525,-499.99,0.00010137,2]
[333283417,1722019832534,-303.63,0.00010137,2]
[333283418,1722019832547,-195.82,0.0001014,2]
[333283419,1722019832556,-195.82,0.00010142,2]
[333283420,1722019832565,-195.82,0.00010145,2]
[333283421,1722019832574,-50.42858087,0.00010145,2]
[333283422,1722019832596,-118.33141913,0.00010145,2]
[333283423,1722019832605,-195.82,0.00010148,2]
[333283424,1722019832615,-50.51894175,0.0001015,2]
[333283425,1722019834854,-145.30105825,0.0001015,2]
[333283426,1722019834864,-195.82,0.00010153,2]
[333283427,1722019834874,-195.82,0.00010156,2]
[333283428,1722019834883,-195.82,0.00010158,2]
[333283429,1722019834893,-195.82,0.00010161,2]
[333283430,1722019834904,-195.82,0.00010164,2]
[333283431,1722019834913,-195.82,0.00010166,2]
[333283432,1722019834923,-300.0,0.00010167,2]
[333283433,1722019834934,-1000.0,0.00010168,2]
[333283434,1722019834944,-1000.0,0.00010168,2]
[333283435,1722019834954,-195.82,0.00010169,2]
[333283436,1722019834963,-195.82,0.00010172,2]
[333283437,1722019834973,-599.0,0.00010448,2]
[333283438,1722019834983,-1000.0,0.000107,2]
[333283439,1722019834992,-187.233964,0.0001078,2]
[333283440,1722019835001,-259.62041,0.0001078,2]
[333283441,1722019835011,-420.2,0.000108,2]
[333283442,1722019835021,-1865.0,0.000108,2]
[333283443,1722019835032,-155.0,0.0001089,2]
[333283444,1722019835041,-2466.83304724,0.000109,2]
[333283445,1722019835051,-500.0,0.00010912,2]
[333283446,1722019835062,-500.0,0.00010958,2]
[333283447,1722019835072,-500.0,0.00010958,2]
[333283448,1722019835085,-500.0,0.00010958,2]
[333283449,1722019835094,-500.0,0.00010958,2]
[333283450,1722019835103,-500.0,0.00010958,2]
[333283451,1722019835114,-27.0612294,0.00010958,2]
[333283452,1722019835126,-472.9387706,0.00010958,2]
[333283453,1722019835136,-500.0,0.00010958,2]
[333283454,1722019835145,-66.45928548,0.00010959,2]
[333283471,1722019838415,-133.54071452,0.00010959,2]
[333283473,1722019838426,-500.0,0.00010998,2]
[333283475,1722019838436,-500.0,0.00010998,2]
[333283476,1722019838445,-219.13928548,0.00010998,2]
[333283477,1722019838458,-280.86071452,0.00010998,2]
[333283478,1722019838467,-152.95,0.00010998,2]
[333283479,1722019838476,-445.0,0.00010998,2]
[333283480,1722019838486,-810.0,0.00010998,2]
[333283481,1722019838495,-150.0,0.00010998,2]
[333283482,1722019838505,-55.22598138,0.00010999,2]
[333283483,1722019838519,-2063.13945423,0.00010999,2]
[333283484,1722019838530,-210.39281179,0.00010999,2]
[333283485,1722019838542,-500.0,0.00010999,2]
[333283486,1722019838552,-500.0,0.00010999,2]
[333283487,1722019838562,-164.04758606,0.00010999,2]
[333283488,1722019838572,-500.0,0.00010999,2]
[333283489,1722019838581,-500.0,0.00010999,2]
[333283490,1722019838592,-410.05,0.00010999,2]
[333283491,1722019838601,-584.75,0.00010999,2]
[333283492,1722019838612,-482.07,0.00010999,2]
[333283493,1722019838622,-500.0,0.00010999,2]
[333283494,1722019838632,-369.29,0.00010999,2]
[333283495,1722019838641,-354.00915196,0.00010999,2]
[333283496,1722019838652,-7439.61297996,0.00011,2]
[333283497,1722019838699,-514.74031448,0.00011,2]
[333283498,1722019838745,-1389.39140878,0.00011,2]
[333283499,1722019838756,-2306.47229555,0.00011,2]
[333283500,1722019839553,-615.46734802,0.00011,2]
[333283503,1722019839565,-4519.65421666,0.00011,2]
[333283612,1722019840614,-150.0,0.00010998,2]
[333283614,1722019840625,-900.38352162,0.00011,2]
[333283616,1722019840636,-818.52499999,0.00011,2]
[333283977,1722019844493,-45839.61282445,0.00011,2]
[333283979,1722019844504,-33848.5,0.00011,2]
[333283983,1722019844527,-10001.989951,0.00011,2]
[333283985,1722019844539,-61757.16621884,0.00011,2]
[333283992,1722019844601,-409.24,0.00011,2]
[333284167,1722019846512,-11731.94728627,0.00011,2]
[333284177,1722019846604,-1523.78274965,0.00011,2]
[333284180,1722019846616,-1322.85000005,0.00011,2]
[333284182,1722019846628,-6763.5,0.00011,2]
[333284184,1722019846641,-851.60000001,0.00011,2]
[333284186,1722019846654,-250.10479714,0.00011,2]
[333284189,1722019846670,-815.6971792,0.00011,2]
[333284191,1722019846681,-1349.03,0.00011,2]